[Event "*** Titled Tuesday Blitz"]
[Site "Chess.com"]
[Date "2019.08.06"]
[Round "5"]
[White "gmcorrales"]
[Black "underdogchss"]
[Result "0-1"]
[WhiteElo "2712"]
[BlackElo "2524"]
[TimeControl "180+2"]
[EndTime "14:01:46 PDT"]
[Termination "underdogchss won by resignation"]

1. e4 {[%clk 0:03:01.9]} 1... c5 {[%clk 0:03:00.9]} 2. Nf3 {[%clk 0:02:59.7]}
2... d6 {[%clk 0:03:01.7]} 3. d4 {[%clk 0:03:01.2]} 3... cxd4 {[%clk 0:03:03.6]}
4. Nxd4 {[%clk 0:03:03]} 4... Nf6 {[%clk 0:03:04.9]} 5. Nc3 {[%clk 0:03:04.6]}
5... a6 {[%clk 0:03:06.3]} 6. Be3 {[%clk 0:03:05.6]} 6... Ng4 {[%clk 0:03:07]}
7. Bc1 {[%clk 0:03:05.6]} 7... Nf6 {[%clk 0:03:06.6]} 8. f3 {[%clk 0:03:07.2]}
8... e5 {[%clk 0:03:07]} 9. Nb3 {[%clk 0:03:07.8]} 9... Be7 {[%clk 0:03:08]} 10.
Be3 {[%clk 0:03:09.4]} 10... Be6 {[%clk 0:03:09.2]} 11. Qd2 {[%clk 0:03:10.8]}
11... O-O {[%clk 0:03:10.2]} 12. O-O-O {[%clk 0:03:11.3]} 12... Nbd7 {[%clk
0:03:10.5]} 13. g4 {[%clk 0:03:12.2]} 13... b5 {[%clk 0:03:11.8]} 14. g5 {[%clk
0:03:10.6]} 14... b4 {[%clk 0:03:12.3]} 15. Nd5 {[%clk 0:03:12.2]} 15... Nxd5
{[%clk 0:03:10.4]} 16. exd5 {[%clk 0:03:14.1]} 16... Bf5 {[%clk 0:03:12.3]} 17.
Bd3 {[%clk 0:03:15.6]} 17... Bxd3 {[%clk 0:03:13.1]} 18. Qxd3 {[%clk 0:03:17.5]}
18... Bxg5 {[%clk 0:03:12.4]} 19. Rdg1 {[%clk 0:03:15.5]} 19... Bxe3+ {[%clk
0:03:10.9]} 20. Qxe3 {[%clk 0:03:17.4]} 20... a5 {[%clk 0:02:59.1]} 21. h4
{[%clk 0:03:16.8]} 21... Qf6 {[%clk 0:02:52.1]} 22. Nd2 {[%clk 0:03:16.5]} 22...
Qf4 {[%clk 0:02:51.7]} 23. Qf2 {[%clk 0:03:05.2]} 23... Nf6 {[%clk 0:02:50.2]}
24. h5 {[%clk 0:03:05.1]} 24... Ne4 {[%clk 0:02:44.2]} 25. Qg2 {[%clk
0:02:57.9]} 25... Qxd2+ {[%clk 0:02:44.4]} 26. Qxd2 {[%clk 0:02:59.8]} 26...
Nxd2 {[%clk 0:02:45.9]} 27. Kxd2 {[%clk 0:03:01.7]} 27... f5 {[%clk 0:02:40]}
28. Ra1 {[%clk 0:02:54.6]} 28... Rac8 {[%clk 0:02:39.6]} 29. a3 {[%clk
0:02:55.5]} 29... Rc5 {[%clk 0:02:40.6]} 30. axb4 {[%clk 0:02:56]} 30... axb4
{[%clk 0:02:40.8]} 31. Ra7 {[%clk 0:02:49.3]} 31... Rfc8 {[%clk 0:02:34.9]} 32.
Rd7 {[%clk 0:02:09.6]} 32... Rxd5+ {[%clk 0:02:27]} 33. Ke3 {[%clk 0:02:10.1]}
33... Rd4 {[%clk 0:01:57.9]} 34. Rg1 {[%clk 0:02:09.9]} 34... f4+ {[%clk
0:01:58.8]} 35. Ke2 {[%clk 0:01:39.8]} 35... Rxc2+ {[%clk 0:01:56]} 36. Ke1
{[%clk 0:01:39.1]} 36... Rc1+ {[%clk 0:01:55.9]} 37. Ke2 {[%clk 0:01:39.4]}
37... Rxg1 {[%clk 0:01:55.7]} 0-1

[Event "*** Titled Tuesday Blitz"]
[Site "Chess.com"]
[Date "2019.08.06"]
[Round "5"]
[White "AndrewMaco"]
[Black "MFBerna"]
[Result "1-0"]
[WhiteElo "2602"]
[BlackElo "2373"]
[TimeControl "180+2"]
[EndTime "14:01:57 PDT"]
[Termination "AndrewMaco won by resignation"]

1. e4 {[%clk 0:03:01.9]} 1... c6 {[%clk 0:02:56.6]} 2. d4 {[%clk 0:03:02.8]}
2... d5 {[%clk 0:02:58.5]} 3. e5 {[%clk 0:03:04.4]} 3... c5 {[%clk 0:02:59.7]}
4. dxc5 {[%clk 0:03:04.9]} 4... e6 {[%clk 0:02:59.9]} 5. a3 {[%clk 0:03:05.5]}
5... Bxc5 {[%clk 0:03:00.9]} 6. Nf3 {[%clk 0:03:07.1]} 6... Nc6 {[%clk
0:03:01.3]} 7. b4 {[%clk 0:03:08.3]} 7... Bb6 {[%clk 0:03:02.5]} 8. Bb2 {[%clk
0:03:09.2]} 8... Nge7 {[%clk 0:03:02.4]} 9. Bd3 {[%clk 0:03:10]} 9... Ng6 {[%clk
0:03:03.1]} 10. O-O {[%clk 0:03:10.7]} 10... Nf4 {[%clk 0:03:04.1]} 11. c4
{[%clk 0:03:09.1]} 11... Nxd3 {[%clk 0:02:54.4]} 12. Qxd3 {[%clk 0:03:11]} 12...
dxc4 {[%clk 0:02:50.9]} 13. Qxc4 {[%clk 0:03:12.9]} 13... O-O {[%clk 0:02:48.8]}
14. Nc3 {[%clk 0:03:11.1]} 14... Ne7 {[%clk 0:01:59.7]} 15. Qg4 {[%clk
0:03:08.5]} 15... Nf5 {[%clk 0:01:51.6]} 16. Ne4 {[%clk 0:03:09.4]} 16... Qe7
{[%clk 0:01:28]} 17. Nf6+ {[%clk 0:02:41.4]} 17... Kh8 {[%clk 0:01:28]} 18. Nxh7
{[%clk 0:02:31.7]} 18... Kxh7 {[%clk 0:01:04.3]} 19. Ng5+ {[%clk 0:02:32.8]}
19... Kg8 {[%clk 0:00:51.4]} 20. Qh5 {[%clk 0:02:33.7]} 20... Nh6 {[%clk
0:00:51.6]} 21. Rad1 {[%clk 0:02:30.9]} 21... Rd8 {[%clk 0:00:38.4]} 22. Ne4
{[%clk 0:02:22.7]} 22... Bd7 {[%clk 0:00:25.8]} 23. Nf6+ {[%clk 0:02:21.2]}
23... Kf8 {[%clk 0:00:18.7]} 24. Rd3 {[%clk 0:02:21.8]} 24... Bb5 {[%clk
0:00:14.5]} 25. Rg3 {[%clk 0:02:23]} 25... Qxf6 {[%clk 0:00:05.2]} 26. exf6
{[%clk 0:02:22.4]} 26... Bxf1 {[%clk 0:00:05]} 27. fxg7+ {[%clk 0:02:20.4]}
27... Ke8 {[%clk 0:00:05.9]} 28. Qxh6 {[%clk 0:02:19.2]} 28... Rd1 {[%clk
0:00:06]} 29. h4 {[%clk 0:02:15.4]} 29... Bd3+ {[%clk 0:00:05.4]} 30. Kh2 {[%clk
0:02:16.5]} 30... Bxf2 {[%clk 0:00:06.3]} 31. g8=Q+ {[%clk 0:02:16.9]} 31... Kd7
{[%clk 0:00:07.1]} 32. Qxf7+ {[%clk 0:02:18.2]} 32... Kc6 {[%clk 0:00:08.2]} 33.
Qxf2 {[%clk 0:02:19.6]} 1-0

[Event "*** Titled Tuesday Blitz"]
[Site "Chess.com"]
[Date "2019.08.06"]
[Round "5"]
[White "RandomOracle"]
[Black "Nathan_Filgueiras"]
[Result "0-1"]
[WhiteElo "2190"]
[BlackElo "2224"]
[TimeControl "180+2"]
[EndTime "14:02:23 PDT"]
[Termination "Nathan_Filgueiras won on time"]

1. d4 {[%clk 0:00:26.3]} 1... Nf6 {[%clk 0:02:58.8]} 2. c4 {[%clk 0:00:25.1]}
2... e6 {[%clk 0:02:59.6]} 3. g3 {[%clk 0:00:24.5]} 3... d5 {[%clk 0:02:57.5]}
4. Nf3 {[%clk 0:00:25.4]} 4... dxc4 {[%clk 0:02:54]} 5. Bg2 {[%clk 0:00:25.4]}
5... a6 {[%clk 0:02:53]} 6. Ne5 {[%clk 0:00:22.5]} 6... Bb4+ {[%clk 0:02:52.1]}
7. Nc3 {[%clk 0:00:21.9]} 7... O-O {[%clk 0:02:25.9]} 8. Nxc4 {[%clk 0:00:20]}
8... c5 {[%clk 0:02:18.5]} 9. Be3 {[%clk 0:00:11.4]} 9... Nd5 {[%clk 0:02:09.5]}
10. dxc5 {[%clk 0:00:05]} 10... Nxc3 {[%clk 0:02:05.6]} 11. Qb3 {[%clk
0:00:04.9]} 11... Nd5+ {[%clk 0:01:58.5]} 12. Kf1 {[%clk 0:00:06]} 12... Nxe3+
{[%clk 0:01:55.2]} 13. Qxe3 {[%clk 0:00:06.9]} 13... Nc6 {[%clk 0:01:48.4]} 14.
a3 {[%clk 0:00:06.3]} 14... Ba5 {[%clk 0:01:43.4]} 15. b4 {[%clk 0:00:06.6]}
15... Bc7 {[%clk 0:01:44.5]} 16. f4 {[%clk 0:00:07.4]} 16... Qd4 {[%clk
0:01:37.5]} 17. Bxc6 {[%clk 0:00:04.5]} 17... Qxe3 {[%clk 0:01:22.5]} 18. Nxe3
{[%clk 0:00:05.1]} 18... bxc6 {[%clk 0:01:24]} 19. Nc4 {[%clk 0:00:05.4]} 19...
f6 {[%clk 0:01:16.4]} 20. Kf2 {[%clk 0:00:04.6]} 20... e5 {[%clk 0:01:17.6]} 0-1

[Event "*** Titled Tuesday Blitz"]
[Site "Chess.com"]
[Date "2019.08.06"]
[Round "5"]
[White "SaraciNderim"]
[Black "darsen_sanzhaev"]
[Result "1-0"]
[WhiteElo "2825"]
[BlackElo "2604"]
[TimeControl "180+2"]
[EndTime "14:02:29 PDT"]
[Termination "SaraciNderim won by resignation"]

1. d4 {[%clk 0:03:01.9]} 1... Nf6 {[%clk 0:03:00.9]} 2. Nf3 {[%clk 0:03:02.6]}
2... e6 {[%clk 0:03:02.3]} 3. g3 {[%clk 0:03:03.5]} 3... b5 {[%clk 0:03:03]} 4.
Bg2 {[%clk 0:03:05.4]} 4... Bb7 {[%clk 0:03:04.6]} 5. O-O {[%clk 0:03:07.3]}
5... Be7 {[%clk 0:03:05]} 6. b3 {[%clk 0:03:08.7]} 6... c5 {[%clk 0:02:52.2]} 7.
dxc5 {[%clk 0:03:08.2]} 7... Bxc5 {[%clk 0:02:54.1]} 8. Bb2 {[%clk 0:03:09.2]}
8... O-O {[%clk 0:02:52.2]} 9. Nbd2 {[%clk 0:03:09.9]} 9... d6 {[%clk
0:02:34.9]} 10. c4 {[%clk 0:03:09.5]} 10... a6 {[%clk 0:02:31.5]} 11. a3 {[%clk
0:03:10.3]} 11... Nbd7 {[%clk 0:02:22.8]} 12. b4 {[%clk 0:03:11]} 12... Ba7
{[%clk 0:02:18]} 13. e3 {[%clk 0:03:11.4]} 13... Nb6 {[%clk 0:02:11]} 14. Rc1
{[%clk 0:03:09.4]} 14... Rc8 {[%clk 0:01:36.9]} 15. Qe2 {[%clk 0:03:09.6]} 15...
bxc4 {[%clk 0:01:21.5]} 16. Nxc4 {[%clk 0:03:06.2]} 16... Nxc4 {[%clk
0:01:16.6]} 17. Rxc4 {[%clk 0:03:08.1]} 17... Rxc4 {[%clk 0:01:10]} 18. Qxc4
{[%clk 0:03:10]} 18... Ne4 {[%clk 0:01:09.2]} 19. Rd1 {[%clk 0:03:05.9]} 19...
Qe7 {[%clk 0:00:49.1]} 20. Qd3 {[%clk 0:02:57.8]} 20... Rc8 {[%clk 0:00:31.6]}
21. Nd2 {[%clk 0:02:57.7]} 21... Nxd2 {[%clk 0:00:30.3]} 22. Rxd2 {[%clk
0:02:58]} 22... Bxg2 {[%clk 0:00:29.3]} 23. Kxg2 {[%clk 0:02:59.9]} 23... Qb7+
{[%clk 0:00:24.7]} 24. e4 {[%clk 0:02:56.9]} 24... h6 {[%clk 0:00:16]} 25. Qf3
{[%clk 0:02:55.6]} 25... Qc6 {[%clk 0:00:11.3]} 26. h4 {[%clk 0:02:45.6]} 26...
Bb6 {[%clk 0:00:11]} 27. h5 {[%clk 0:02:46.3]} 27... a5 {[%clk 0:00:10.9]} 28.
Qg4 {[%clk 0:02:46.3]} 28... e5 {[%clk 0:00:11.6]} 29. Rxd6 {[%clk 0:02:44.2]}
29... Qxd6 {[%clk 0:00:10.4]} 30. Qxc8+ {[%clk 0:02:44.5]} 30... Kh7 {[%clk
0:00:05.7]} 31. Qf5+ {[%clk 0:02:45.2]} 31... Kg8 {[%clk 0:00:05]} 32. Bxe5
{[%clk 0:02:46.2]} 32... Qc6 {[%clk 0:00:03.8]} 33. bxa5 {[%clk 0:02:43.4]}
33... Ba7 {[%clk 0:00:03.1]} 34. Qg4 {[%clk 0:02:40.4]} 34... f6 {[%clk
0:00:03.2]} 35. Bf4 {[%clk 0:02:31.1]} 35... Qc5 {[%clk 0:00:03.4]} 36. Be3
{[%clk 0:02:24.4]} 36... Qxa5 {[%clk 0:00:04.6]} 37. Qc8+ {[%clk 0:02:25.6]}
37... Kh7 {[%clk 0:00:04.4]} 38. Qf5+ {[%clk 0:02:26.4]} 38... Qxf5 {[%clk
0:00:05.5]} 39. exf5 {[%clk 0:02:28.3]} 39... Bb8 {[%clk 0:00:04.9]} 40. Bb6
{[%clk 0:02:28.6]} 1-0

[Event "*** Titled Tuesday Blitz"]
[Site "Chess.com"]
[Date "2019.08.06"]
[Round "5"]
[White "hurricane7791"]
[Black "nocnypako"]
[Result "1-0"]
[WhiteElo "2721"]
[BlackElo "2582"]
[TimeControl "180+2"]
[EndTime "14:02:32 PDT"]
[Termination "hurricane7791 won on time"]

1. d4 {[%clk 0:03:01.9]} 1... d5 {[%clk 0:02:59.6]} 2. c4 {[%clk 0:03:01.7]}
2... c6 {[%clk 0:03:00.7]} 3. Nf3 {[%clk 0:03:00.8]} 3... Nf6 {[%clk 0:03:02.1]}
4. Nc3 {[%clk 0:03:02.1]} 4... e6 {[%clk 0:03:03.1]} 5. e3 {[%clk 0:03:03.2]}
5... Nbd7 {[%clk 0:03:01.8]} 6. Qc2 {[%clk 0:03:04.6]} 6... Bd6 {[%clk
0:03:02.4]} 7. Bd3 {[%clk 0:03:05.7]} 7... O-O {[%clk 0:03:02.2]} 8. O-O {[%clk
0:03:06.3]} 8... h6 {[%clk 0:03:03.8]} 9. e4 {[%clk 0:03:05.3]} 9... dxe4 {[%clk
0:02:59.4]} 10. Nxe4 {[%clk 0:03:07.2]} 10... Nxe4 {[%clk 0:03:00.2]} 11. Bxe4
{[%clk 0:03:09.1]} 11... c5 {[%clk 0:03:01]} 12. Rd1 {[%clk 0:03:09.3]} 12...
Qe7 {[%clk 0:03:00.1]} 13. b4 {[%clk 0:03:00.9]} 13... cxb4 {[%clk 0:02:57.8]}
14. c5 {[%clk 0:03:00.6]} 14... Bc7 {[%clk 0:02:53.9]} 15. a3 {[%clk 0:03:01.7]}
15... Nf6 {[%clk 0:02:43.7]} 16. axb4 {[%clk 0:03:00.3]} 16... Nxe4 {[%clk
0:02:44]} 17. Qxe4 {[%clk 0:03:02.2]} 17... Qd7 {[%clk 0:02:34.1]} 18. Bf4
{[%clk 0:03:00.5]} 18... Bxf4 {[%clk 0:02:29]} 19. Qxf4 {[%clk 0:03:02.4]} 19...
Qb5 {[%clk 0:02:27.9]} 20. Rdb1 {[%clk 0:02:55.4]} 20... a5 {[%clk 0:02:24.2]}
21. bxa5 {[%clk 0:02:55.5]} 21... Rxa5 {[%clk 0:02:25.8]} 22. h4 {[%clk
0:02:50.8]} 22... Rxa1 {[%clk 0:02:22.5]} 23. Rxa1 {[%clk 0:02:52.7]} 23... b6
{[%clk 0:02:20.2]} 24. Rc1 {[%clk 0:02:44.1]} 24... Bb7 {[%clk 0:02:13.8]} 25.
Ne5 {[%clk 0:02:43.7]} 25... bxc5 {[%clk 0:01:52.4]} 26. dxc5 {[%clk 0:02:43.7]}
26... f6 {[%clk 0:01:01.7]} 27. Ng6 {[%clk 0:02:21.8]} 27... Re8 {[%clk
0:00:50.8]} 28. Qg3 {[%clk 0:02:20]} 28... Qc6 {[%clk 0:00:48.5]} 29. Nf4 {[%clk
0:02:19.5]} 29... e5 {[%clk 0:00:45.2]} 30. Nh5 {[%clk 0:02:19.4]} 30... Re7
{[%clk 0:00:46.3]} 31. Rd1 {[%clk 0:02:17.6]} 31... Kh7 {[%clk 0:00:44.3]} 32.
Rd8 {[%clk 0:02:02.4]} 32... f5 {[%clk 0:00:42.5]} 33. Kh2 {[%clk 0:01:53.2]}
33... Qg6 {[%clk 0:00:37.6]} 34. Rh8+ {[%clk 0:01:53.3]} 1-0

[Event "*** Titled Tuesday Blitz"]
[Site "Chess.com"]
[Date "2019.08.06"]
[Round "5"]
[White "chickencrossroad"]
[Black "KacperPolOK"]
[Result "0-1"]
[WhiteElo "2476"]
[BlackElo "2428"]
[TimeControl "180+2"]
[EndTime "14:02:42 PDT"]
[Termination "KacperPolOK won by checkmate"]

1. d4 {[%clk 0:03:01.9]} 1... e6 {[%clk 0:02:59.1]} 2. c4 {[%clk 0:03:01.9]}
2... f5 {[%clk 0:02:59.9]} 3. g3 {[%clk 0:03:03]} 3... Nf6 {[%clk 0:03:01.2]} 4.
Bg2 {[%clk 0:03:04.7]} 4... d5 {[%clk 0:03:02.6]} 5. Nf3 {[%clk 0:02:54.6]} 5...
c6 {[%clk 0:03:04]} 6. Qc2 {[%clk 0:02:55.4]} 6... Bd6 {[%clk 0:03:03.5]} 7. Bf4
{[%clk 0:02:54]} 7... Bxf4 {[%clk 0:03:03.3]} 8. gxf4 {[%clk 0:02:55.8]} 8...
O-O {[%clk 0:03:04.5]} 9. Nbd2 {[%clk 0:02:49.6]} 9... Ne4 {[%clk 0:03:02.1]}
10. e3 {[%clk 0:02:47.8]} 10... Bd7 {[%clk 0:02:52]} 11. Nxe4 {[%clk 0:02:46.3]}
11... fxe4 {[%clk 0:02:52.6]} 12. Ne5 {[%clk 0:02:48]} 12... Be8 {[%clk
0:02:53.7]} 13. O-O {[%clk 0:02:37.8]} 13... Nd7 {[%clk 0:02:53.6]} 14. Nxd7
{[%clk 0:02:18.4]} 14... Qxd7 {[%clk 0:02:53.9]} 15. f3 {[%clk 0:02:15.4]} 15...
exf3 {[%clk 0:02:52]} 16. Rxf3 {[%clk 0:02:16.7]} 16... Bg6 {[%clk 0:02:52.4]}
17. Qc3 {[%clk 0:02:15.3]} 17... Be4 {[%clk 0:02:37.1]} 18. Rg3 {[%clk
0:02:16.5]} 18... Bxg2 {[%clk 0:02:38.2]} 19. Rxg2 {[%clk 0:02:18.4]} 19... b5
{[%clk 0:02:34.6]} 20. b3 {[%clk 0:01:56]} 20... bxc4 {[%clk 0:02:33.2]} 21.
bxc4 {[%clk 0:01:57.9]} 21... Rab8 {[%clk 0:02:34.8]} 22. Rc1 {[%clk 0:01:53.5]}
22... Rb6 {[%clk 0:02:22.5]} 23. Rb2 {[%clk 0:01:21.5]} 23... Rfb8 {[%clk
0:02:20.9]} 24. Rcc2 {[%clk 0:01:16.5]} 24... Rxb2 {[%clk 0:02:10.3]} 25. Rxb2
{[%clk 0:01:17.6]} 25... Rxb2 {[%clk 0:02:12.2]} 26. Qxb2 {[%clk 0:01:19.5]}
26... dxc4 {[%clk 0:02:13.8]} 27. Qb4 {[%clk 0:01:07]} 27... Qd5 {[%clk
0:02:12.1]} 28. Qb8+ {[%clk 0:01:03.6]} 28... Kf7 {[%clk 0:02:13]} 29. Qxa7+
{[%clk 0:01:04]} 29... Kg6 {[%clk 0:02:14.6]} 30. Qa3 {[%clk 0:01:00.5]} 30...
Qe4 {[%clk 0:01:55.7]} 31. Kf2 {[%clk 0:00:51]} 31... Qc2+ {[%clk 0:01:56]} 32.
Kg3 {[%clk 0:00:45.7]} 32... c3 {[%clk 0:01:56.8]} 33. Qc5 {[%clk 0:00:37.2]}
33... h6 {[%clk 0:01:50.4]} 34. Qxc6 {[%clk 0:00:36.2]} 34... Kh7 {[%clk
0:01:46.8]} 35. Qxe6 {[%clk 0:00:31.6]} 35... Qg6+ {[%clk 0:01:46]} 36. Qxg6+
{[%clk 0:00:30.9]} 36... Kxg6 {[%clk 0:01:47.9]} 37. d5 {[%clk 0:00:29.6]} 37...
c2 {[%clk 0:01:49]} 38. e4 {[%clk 0:00:30.6]} 38... c1=Q {[%clk 0:01:50.2]} 39.
d6 {[%clk 0:00:31]} 39... Qc3+ {[%clk 0:01:47.1]} 40. Kg4 {[%clk 0:00:31.7]}
40... h5+ {[%clk 0:01:47.8]} 41. Kh4 {[%clk 0:00:32.2]} 41... Qf3 {[%clk
0:01:47.5]} 42. f5+ {[%clk 0:00:32.3]} 42... Kh6 {[%clk 0:01:48.3]} 43. h3
{[%clk 0:00:34]} 43... Qf4# {[%clk 0:01:49.5]} 0-1

[Event "*** Titled Tuesday Blitz"]
[Site "Chess.com"]
[Date "2019.08.06"]
[Round "5"]
[White "julinha97"]
[Black "WeAintSurePal"]
[Result "0-1"]
[WhiteElo "2224"]
[BlackElo "2315"]
[TimeControl "180+2"]
[EndTime "14:02:55 PDT"]
[Termination "WeAintSurePal won by resignation"]

1. e4 {[%clk 0:03:01.9]} 1... c6 {[%clk 0:03:00.4]} 2. d4 {[%clk 0:03:02.3]}
2... d5 {[%clk 0:03:02.3]} 3. exd5 {[%clk 0:03:04.2]} 3... cxd5 {[%clk
0:03:00.3]} 4. c4 {[%clk 0:03:05.7]} 4... Nf6 {[%clk 0:03:00.1]} 5. Nc3 {[%clk
0:03:05.9]} 5... g6 {[%clk 0:02:59.7]} 6. Qb3 {[%clk 0:03:05.1]} 6... Nc6 {[%clk
0:02:59]} 7. cxd5 {[%clk 0:02:59.3]} 7... Na5 {[%clk 0:02:54.1]} 8. Qa4+ {[%clk
0:02:55.8]} 8... Bd7 {[%clk 0:02:54.3]} 9. Bb5 {[%clk 0:02:57.4]} 9... Bg7
{[%clk 0:02:53.4]} 10. b4 {[%clk 0:02:49.6]} 10... Rc8 {[%clk 0:02:50.7]} 11.
bxa5 {[%clk 0:02:26.1]} 11... Rxc3 {[%clk 0:02:40.5]} 12. Nf3 {[%clk 0:02:25.3]}
12... O-O {[%clk 0:02:40.1]} 13. Bd2 {[%clk 0:02:18.1]} 13... Rc8 {[%clk
0:02:37.4]} 14. O-O {[%clk 0:02:15.9]} 14... Bg4 {[%clk 0:02:36.1]} 15. Ne5
{[%clk 0:02:13.6]} 15... Bf5 {[%clk 0:02:34.6]} 16. d6 {[%clk 0:01:48.3]} 16...
exd6 {[%clk 0:02:32]} 17. Nf3 {[%clk 0:01:47.5]} 17... Ne4 {[%clk 0:02:22.9]}
18. Bf4 {[%clk 0:01:45.5]} 18... a6 {[%clk 0:02:19.8]} 19. Bd3 {[%clk
0:01:32.8]} 19... Nc3 {[%clk 0:02:17.2]} 20. Qc2 {[%clk 0:01:33.7]} 20... Nd5
{[%clk 0:02:17.5]} 21. Qd2 {[%clk 0:01:24.2]} 21... Bxd3 {[%clk 0:01:54.5]} 22.
Bg5 {[%clk 0:01:23.6]} 22... f6 {[%clk 0:01:49.5]} 23. Qxd3 {[%clk 0:01:24.7]}
23... fxg5 {[%clk 0:01:50.6]} 24. Qb3 {[%clk 0:01:25.9]} 24... Rf5 {[%clk
0:01:48.9]} 25. g4 {[%clk 0:01:22]} 25... Rc3 {[%clk 0:01:46.6]} 26. Qxb7 {[%clk
0:01:09.5]} 26... Rfxf3 {[%clk 0:01:39.9]} 27. Qxd5+ {[%clk 0:01:10.1]} 27...
Kh8 {[%clk 0:01:41]} 28. Rab1 {[%clk 0:01:11.5]} 28... Rf4 {[%clk 0:01:41.1]}
29. h3 {[%clk 0:00:44.1]} 29... Rxh3 {[%clk 0:01:38.2]} 30. Kg2 {[%clk
0:00:45.5]} 30... Rd3 {[%clk 0:01:24.5]} 31. f3 {[%clk 0:00:43.5]} 31... Rfxd4
{[%clk 0:01:21.9]} 32. Qf7 {[%clk 0:00:43.5]} 32... Rd2+ {[%clk 0:01:22.3]} 33.
Kg1 {[%clk 0:00:42.2]} 33... Rf4 {[%clk 0:01:19]} 34. Qa7 {[%clk 0:00:30.2]}
34... Bd4+ {[%clk 0:01:19]} 0-1

[Event "*** Titled Tuesday Blitz"]
[Site "Chess.com"]
[Date "2019.08.06"]
[Round "5"]
[White "VladDobrov"]
[Black "Alexander_Moskalenko"]
[Result "1-0"]
[WhiteElo "2942"]
[BlackElo "2860"]
[TimeControl "180+2"]
[EndTime "14:03:01 PDT"]
[Termination "VladDobrov won by resignation"]

1. d4 {[%clk 0:03:01.9]} 1... Nf6 {[%clk 0:03:01.4]} 2. c4 {[%clk 0:03:03.2]}
2... e6 {[%clk 0:03:03.3]} 3. Nf3 {[%clk 0:03:04.3]} 3... Bb4+ {[%clk 0:02:53]}
4. Nbd2 {[%clk 0:03:05.2]} 4... Qe7 {[%clk 0:02:54.9]} 5. a3 {[%clk 0:03:05.9]}
5... Bxd2+ {[%clk 0:02:46.9]} 6. Bxd2 {[%clk 0:03:07.8]} 6... d6 {[%clk
0:02:48.8]} 7. e3 {[%clk 0:03:09.2]} 7... O-O {[%clk 0:02:48.4]} 8. Be2 {[%clk
0:03:07.9]} 8... Nc6 {[%clk 0:02:49.9]} 9. O-O {[%clk 0:03:08.7]} 9... e5 {[%clk
0:02:50.5]} 10. Bc3 {[%clk 0:03:10.2]} 10... Ne4 {[%clk 0:02:50.4]} 11. Qc2
{[%clk 0:03:03.3]} 11... Nxc3 {[%clk 0:02:50.6]} 12. Qxc3 {[%clk 0:03:05.2]}
12... exd4 {[%clk 0:02:48.9]} 13. exd4 {[%clk 0:03:01.2]} 13... Qf6 {[%clk
0:02:45.6]} 14. h3 {[%clk 0:02:54.8]} 14... Bf5 {[%clk 0:02:45.9]} 15. Bd3
{[%clk 0:02:48.7]} 15... Rfe8 {[%clk 0:02:46.5]} 16. Rfe1 {[%clk 0:02:49.3]}
16... a5 {[%clk 0:02:39.7]} 17. b3 {[%clk 0:02:27.8]} 17... h6 {[%clk 0:02:40]}
18. Bxf5 {[%clk 0:02:20.6]} 18... Qxf5 {[%clk 0:02:41.9]} 19. d5 {[%clk
0:02:16.6]} 19... Ne5 {[%clk 0:02:42.9]} 20. Nxe5 {[%clk 0:02:15.4]} 20... Rxe5
{[%clk 0:02:44.8]} 21. Rxe5 {[%clk 0:02:16.1]} 21... Qxe5 {[%clk 0:02:42.6]} 22.
Qxe5 {[%clk 0:02:16.7]} 22... dxe5 {[%clk 0:02:44.5]} 23. Re1 {[%clk 0:02:14.1]}
23... f6 {[%clk 0:02:44.1]} 24. f4 {[%clk 0:02:15.4]} 24... exf4 {[%clk
0:02:33.5]} 25. Re7 {[%clk 0:02:15.9]} 25... Rc8 {[%clk 0:02:35]} 26. Kf2 {[%clk
0:02:16.7]} 26... Kf8 {[%clk 0:02:35.6]} 27. Rd7 {[%clk 0:02:16.8]} 27... g5
{[%clk 0:02:28.2]} 28. Kf3 {[%clk 0:02:17.6]} 28... f5 {[%clk 0:02:24.6]} 29. h4
{[%clk 0:02:06.3]} 29... Re8 {[%clk 0:02:17.2]} 30. b4 {[%clk 0:01:56]} 30...
Re3+ {[%clk 0:02:16.8]} 31. Kf2 {[%clk 0:01:57.3]} 31... Rxa3 {[%clk 0:02:13.3]}
32. b5 {[%clk 0:01:58.6]} 32... b6 {[%clk 0:02:04.8]} 33. Rxc7 {[%clk
0:01:59.4]} 33... g4 {[%clk 0:02:06.3]} 34. c5 {[%clk 0:01:58.8]} 34... g3+
{[%clk 0:02:03.8]} 35. Ke2 {[%clk 0:01:53.8]} 35... Ra2+ {[%clk 0:02:04.8]} 36.
Kd3 {[%clk 0:01:51.6]} 36... f3 {[%clk 0:02:05.8]} 37. gxf3 {[%clk 0:01:48]}
37... g2 {[%clk 0:02:05.7]} 38. Rc8+ {[%clk 0:01:44.7]} 38... Kf7 {[%clk
0:02:06.5]} 39. Rc7+ {[%clk 0:01:45.9]} 39... Kg6 {[%clk 0:02:07.4]} 40. h5+
{[%clk 0:01:44.3]} 40... Kf6 {[%clk 0:02:07.6]} 41. Rc6+ {[%clk 0:01:45.1]}
41... Ke5 {[%clk 0:02:08.8]} 42. Rg6 {[%clk 0:01:46]} 42... bxc5 {[%clk
0:02:07.9]} 43. d6 {[%clk 0:01:44.5]} 43... Rb2 {[%clk 0:02:00.8]} 44. d7 {[%clk
0:01:27.3]} 44... g1=Q {[%clk 0:02:01.1]} 45. Rxg1 {[%clk 0:01:27.2]} 45... c4+
{[%clk 0:01:18.2]} 46. Kc3 {[%clk 0:01:16.3]} 46... Rb3+ {[%clk 0:01:18.8]} 47.
Kxc4 {[%clk 0:01:16.1]} 47... Rb4+ {[%clk 0:01:19.9]} 48. Kc5 {[%clk 0:01:17.6]}
48... Rd4 {[%clk 0:01:20]} 49. Re1+ {[%clk 0:01:18.7]} 49... Re4 {[%clk
0:01:21.4]} 50. fxe4 {[%clk 0:01:19.7]} 50... f4 {[%clk 0:01:22.9]} 51. d8=Q
{[%clk 0:01:20.7]} 1-0